fUSD/lending_fUSD_20250523
["ID","MTS","AMOUNT","RATE_DAILY","PERIOD"]
[362142511,1748033438783,-1398.62934969,0.00025446,2]
[362142513,1748033438792,-150.0,0.00025446,2]
[362142515,1748033438802,-2096.47700227,0.00025446,2]
[362142517,1748033438812,-191.0,0.00025479,2]
[362142519,1748033438821,-7788.86925349,0.00025494,2]
[362142521,1748033438830,-385.41397143,0.00025521,13]
[362142523,1748033438840,-16114.2278355,0.00025597,3]
[362142525,1748033438850,-4952.54143088,0.00025607,2]
[362142527,1748033438859,-957.0,0.000257,2]
[362142529,1748033438869,-959.0,0.000257,2]
[362142531,1748033438878,-165.32,0.00025793,2]
[362142533,1748033438888,-570.13,0.00025828,2]
[362142535,1748033438897,-308.65548384,0.00025886,2]
[362142536,1748033438907,-19564.1764807,0.00025961,2]
[362142537,1748033438917,-16114.2278355,0.00025986,3]
[362142538,1748033438927,-615.0,0.00025996,2]
[362142539,1748033438937,-499.01717826,0.0002615,2]
[362142540,1748033438947,-500.0,0.00026164,7]
[362142541,1748033438956,-500.0,0.00026164,7]
[362142542,1748033438966,-242.08563263,0.00026164,7]
[362142543,1748033438975,-385.41397143,0.00026176,14]
[362142544,1748033438985,-7788.86925349,0.00026267,2]
[362142545,1748033438994,-168.18,0.00026379,2]
[362142546,1748033439003,-561.06,0.00026412,2]
[362142547,1748033439013,-19564.1764807,0.00026576,2]
[362142548,1748033439022,-2351.0,0.00026585,2]
[362142549,1748033439032,-151.8,0.00026676,2]
[362142550,1748033439041,-167.48,0.00026746,2]
[362142551,1748033439051,-400.0,0.000268,9]
[362142552,1748033439061,-436.959807,0.00026802,4]
[362142553,1748033439071,-385.41397143,0.00026831,15]
[362142554,1748033439081,-191.0,0.00026849,2]
[362142555,1748033439091,-1475.75944362,0.0002687,2]
[362142556,1748033439100,-800.0,0.000269,9]
[362142557,1748033439110,-500.0,0.00026986,7]
[362142558,1748033439119,-164.39240091,0.00026986,2]
[362142559,1748033439129,-199.97096664,0.00026986,2]
[362142560,1748033439138,-7788.86925349,0.00027039,2]
[362142561,1748033439147,-16114.2278355,0.00027113,3]
[362142562,1748033439157,-3560.54,0.00027123,2]
[362142563,1748033439167,-150.0,0.0002713,2]
[362142564,1748033439176,-200.0,0.0002713,2]
[362142565,1748033439186,-150.0,0.00027138,2]
[362142566,1748033439196,-150.0,0.00027168,2]
[362142567,1748033439205,-166.18,0.0002717,2]
[362142568,1748033439214,-19564.1764807,0.0002719,2]
[362142569,1748033439224,-164.3005,0.00027192,2]
[362142570,1748033439233,-150.0,0.00027217,2]
[362142571,1748033439242,-500.0,0.00027227,2]
[362142572,1748033439251,-150.0,0.0002726,2]
[362142573,1748033439260,-150.0,0.00027262,2]
[362142574,1748033439270,-150.0,0.0002727,2]
[362142575,1748033439279,-1000.0,0.0002727,2]
[362142576,1748033439289,-597.0392791,0.0002728,2]
[362142577,1748033439298,-164.39240091,0.00027288,2]
[362142578,1748033439308,-199.97096664,0.00027288,2]
[362142579,1748033439318,-150.0,0.00027289,2]
[362142580,1748033439328,-150.0,0.00027293,2]
[362142581,1748033439338,-435.75,0.000273,2]
[362142582,1748033439347,-704.48,0.000273,2]
[362142583,1748033439357,-426.54,0.000273,2]
[362142584,1748033439371,-1696.25,0.000273,2]
[362142585,1748033439381,-308.65548382,0.0002731,2]
[362142586,1748033439391,-16114.2278355,0.00027312,3]
[362142587,1748033439401,-152.0,0.00027331,3]
[362142588,1748033439411,-80571.1391775,0.00027332,3]
[362142589,1748033439421,-8479.09203696,0.00027332,3]
[362142590,1748033439431,-48342.6835065,0.00027332,3]
[362142591,1748033439443,-16958.1840739,0.00027332,3]
[362142592,1748033439453,-21547.15056837,0.00027342,2]
[362142596,1748033440128,-41842.0945838,0.00027342,2]
[362142597,1748033440180,-4032.71134052,0.00027342,2]
[362142598,1748033440193,-6618.25239816,0.00027342,2]
[362142599,1748033440237,-1000.0,0.00027342,2]
[362142600,1748033440345,-31860.60572504,0.00027342,2]
[362142601,1748033440358,-10788.87333602,0.00027342,2]
[362142602,1748033440372,-17335.38929171,0.00027342,2]
[362142603,1748033440404,-1338.24254978,0.00027342,2]
[362142604,1748033440414,-1399.7836163,0.00027342,2]
[362142605,1748033440424,-1879.2737124,0.00027342,2]
[362142606,1748033440433,-6283.1385532,0.00027342,2]
[362142607,1748033440444,-4951.373691,0.00027342,2]
[362142608,1748033440454,-12432.0441464,0.00027342,2]
[362142609,1748033440463,-1000.0,0.00027348,2]
[362142610,1748033440473,-305.71268325,0.00027349,2]
[362142611,1748033440483,-16114.2278355,0.00027351,3]
[362142612,1748033440492,-8479.09203696,0.00027351,3]
[362142613,1748033440501,-32228.455671,0.0002736,3]
[362142614,1748033440510,-8479.09203696,0.0002736,3]
[362142615,1748033440519,-289.505257,0.0002737,7]
[362142616,1748033440529,-32228.455671,0.0002737,3]
[362142617,1748033440539,-14131.8200616,0.0002737,3]
[362142618,1748033440548,-16114.2278355,0.00027377,3]
[362142619,1748033440558,-2826.36401232,0.00027377,3]
[362142620,1748033440567,-64456.911342,0.0002738,3]
[362142621,1748033440576,-31090.0041355,0.0002738,3]
[362142622,1748033440585,-172.28526905,0.0002738,2]
[362142623,1748033440595,-1481.53,0.00027384,2]
[362142624,1748033440604,-1035.50121157,0.00027389,10]
[362142626,1748033440613,-27816.79823889,0.0002739,2]
[362142627,1748033440624,-1626.1,0.0002739,2]
[362142632,1748033443047,-473.25092522,0.0002739,2]
[362142633,1748033443261,-121132.51204558,0.0002739,2]
[362142634,1748033443270,-4748.69883878,0.0002739,2]
[362142635,1748033443280,-151.0,0.0002739,2]
[362142636,1748033443290,-151.0,0.0002739,2]
[362142637,1748033443299,-151.0,0.0002739,2]
[362142638,1748033443309,-151.0,0.0002739,2]
[362142639,1748033443320,-151.0,0.0002739,2]
[362142640,1748033443329,-247.597674,0.0002739,2]
[362142641,1748033443338,-151.0,0.0002739,7]
[362142642,1748033443352,-676.924635,0.0002739,7]
[362142643,1748033443363,-2826.36401232,0.0002739,3]
[362142644,1748033443374,-151.0,0.0002739,7]
[362142645,1748033443384,-151.0,0.0002739,7]
[362142646,1748033443394,-170.887227,0.00027397,4]
[362142647,1748033443403,-170.887227,0.00027397,4]
[362142648,1748033443413,-176.295535,0.00027397,4]
[362142649,1748033443423,-176.295535,0.00027397,4]
[362142651,1748033443433,-176.295535,0.00027397,4]
[362142653,1748033443445,-176.295535,0.00027397,4]
[362142654,1748033443455,-1000.0,0.00027397,15]
[362142656,1748033443464,-763.15158187,0.00027397,15]
[362142658,1748033443473,-196.415116,0.00027397,4]
[362142660,1748033443483,-151.393738,0.00027397,4]
[362142662,1748033443492,-151.393738,0.00027397,4]
[362142664,1748033443502,-1010.97,0.00027397,2]
[362142666,1748033443511,-300.0,0.00027397,2]
[362142668,1748033443520,-150.01,0.00027397,2]
[362142670,1748033443530,-591.17965712,0.000274,2]
[362142672,1748033443540,-13617.71,0.000274,7]
[362142675,1748033443549,-450.35262673,0.00027449,3]
[362142677,1748033443558,-1033.39513425,0.00027451,3]
[362142679,1748033443568,-2826.36401232,0.00027471,3]
[362142681,1748033443577,-385.41397143,0.00027486,17]
[362142683,1748033443586,-2826.36401232,0.00027491,3]
[362142685,1748033443596,-711.57377361,0.000275,3]
[362142687,1748033443607,-4941.15425103,0.000275,3]
[362142689,1748033443618,-165.6902295,0.00027507,30]
[362142691,1748033443627,-936.0,0.0002751,2]
[362142693,1748033443636,-1310.0,0.0002751,2]
[362142695,1748033443645,-631.0,0.0002751,2]
[362142697,1748033443654,-799.0,0.0002751,2]
[362142699,1748033443664,-1260.0,0.0002751,2]
[362142701,1748033443673,-586.0,0.0002751,2]
[362142703,1748033443682,-1461.0,0.0002751,2]
[362142705,1748033443692,-921.0,0.0002751,2]
[362142707,1748033443702,-554.0,0.0002751,2]
[362142709,1748033443711,-170.887227,0.00027534,4]
[362142711,1748033443721,-170.887227,0.00027534,4]
[362142713,1748033443730,-176.295535,0.00027534,4]
[362142715,1748033443739,-176.295535,0.00027534,4]
[362142717,1748033443748,-176.295535,0.00027534,4]
[362142719,1748033443758,-196.415116,0.00027534,4]
[362142721,1748033443767,-151.393738,0.00027534,4]
[362142722,1748033443776,-1000.0,0.0002757,2]
[362142724,1748033443785,-164.39240091,0.00027589,30]
[362142726,1748033443795,-219.0,0.0002759,2]
[362142729,1748033443805,-435.75,0.000276,2]
[362142730,1748033443815,-704.48,0.000276,2]
[362142732,1748033443825,-426.54,0.000276,2]
[362142734,1748033443835,-1696.25,0.000276,2]
[362142737,1748033443845,-211.0,0.00027659,8]
[362142738,1748033443855,-1000.0,0.0002767,2]
[362142740,1748033443864,-176.295535,0.00027671,4]
[362142742,1748033443873,-2826.36401232,0.00027688,3]
[362142744,1748033443882,-2826.36401232,0.00027708,3]
[362142746,1748033443892,-500.0,0.00027718,120]
[362142748,1748033443901,-1345.008735,0.00027718,120]
[362142750,1748033443910,-507.651365,0.00027718,120]
[362142752,1748033443921,-6838.0,0.0002773,2]
[362142754,1748033443930,-841.0,0.0002773,2]
[362142756,1748033443939,-154.0,0.0002773,2]
[362142758,1748033443948,-879.0,0.0002773,2]
[362142760,1748033443957,-4052.0,0.0002773,2]
[362142762,1748033443967,-233.0,0.0002773,2]
[362142764,1748033443976,-19564.1764807,0.00027805,2]
[362142766,1748033443986,-170.887227,0.00027808,4]
[362142768,1748033443995,-176.295535,0.00027808,4]
[362142770,1748033444004,-500.0,0.00027808,7]
[362142772,1748033444013,-500.0,0.00027808,7]
[362142774,1748033444023,-196.415116,0.00027808,4]
[362142776,1748033444032,-165.6902295,0.00027808,30]
[362142778,1748033444041,-7788.86925349,0.00027811,2]
[362142780,1748033444050,-1300.0,0.000279,10]
[362142782,1748033444059,-1000.0,0.00027901,2]
[362142784,1748033444070,-3226.78713076,0.00027907,2]
[362142786,1748033444079,-176.295535,0.00027945,4]
[362142788,1748033444088,-151.393738,0.00027945,4]
[362142789,1748033444097,-150.0,0.00027945,2]
[362142791,1748033444106,-150.0,0.00027945,2]
[362142793,1748033444116,-170.17,0.00027945,2]
[362142795,1748033444125,-906.62,0.00027945,2]
[362142797,1748033444134,-300.0,0.00028,120]
[362142799,1748033444144,-277.63,0.00028,2]
[362142801,1748033444153,-66015.79664357,0.00028,10]
[362142803,1748033444163,-2826.36401232,0.00028025,3]
[362142805,1748033444172,-2826.36401232,0.00028047,3]
[362142807,1748033444181,-800.0,0.00028057,10]
[362142809,1748033444191,-800.0,0.00028057,10]
[362142811,1748033444200,-800.0,0.00028057,10]
[362142813,1748033444209,-800.0,0.00028057,10]
[362142815,1748033444218,-800.0,0.00028057,10]
[362142817,1748033444228,-800.0,0.00028057,10]
[362142819,1748033444237,-800.0,0.00028057,10]
[362142821,1748033444247,-800.0,0.00028057,10]
[362142823,1748033444256,-800.0,0.00028057,10]
[362142825,1748033444265,-806.02231111,0.00028057,10]
[362142827,1748033444274,-800.0,0.00028057,10]
[362142829,1748033444283,-800.0,0.00028057,10]
[362142831,1748033444291,-800.0,0.00028057,10]
[362142833,1748033444300,-800.0,0.00028057,10]
[362142835,1748033444310,-800.0,0.00028057,10]
[362142837,1748033444320,-800.0,0.00028057,10]
[362142839,1748033444330,-800.0,0.00028057,10]
[362142841,1748033444339,-800.0,0.00028057,10]
[362142843,1748033444348,-800.0,0.00028057,10]
[362142845,1748033444357,-800.0,0.00028057,10]
[362142847,1748033444369,-219.0,0.0002807,2]
[362142849,1748033444378,-699.16549445,0.0002807,2]
[362142851,1748033444388,-170.887227,0.00028082,4]
[362142852,1748033444397,-176.295535,0.00028082,4]
[362142854,1748033444407,-170.16,0.000281,2]
[362142856,1748033444417,-165.6902295,0.0002811,30]
[362142858,1748033444426,-385.41397143,0.00028141,18]
[362142860,1748033444435,-1000.0,0.0002817,2]
[362142862,1748033444447,-400.0,0.0002817,2]
[362142864,1748033444457,-249.06680247,0.00028195,2]
[362142866,1748033444468,-150.0,0.00028199,2]
[362142868,1748033444477,-435.75,0.000282,2]
[362142870,1748033444487,-704.48,0.000282,2]
[362142872,1748033444496,-426.54,0.000282,2]
[362142874,1748033444505,-1696.25,0.000282,2]
[362142876,1748033444514,-4979.49301727,0.000282,2]
[362142878,1748033444526,-757.61,0.000282,2]
[362142916,1748033444887,-800.82437286,0.000282,2]
[362142919,1748033444902,-1270.85172194,0.000282,2]
[362142921,1748033444913,-3996.99999943,0.000282,2]
[362143041,1748033446200,-150.0,0.0002473,2]
[362143043,1748033446210,-150.0,0.0002473,2]
[362143045,1748033446219,-151.0,0.0002739,7]
[362143047,1748033446229,-78.01537605,0.00027805,5]
[362143049,1748033446241,-471.98462395,0.00027805,5]
[362143051,1748033446250,-9142.68935541,0.000282,2]
[362143275,1748033527366,-193.68,0.00016712,2]
[362143276,1748033527760,151.0,0.00042457,60]
[362143277,1748033540701,420.0,0.00042457,120]
[362143278,1748033541007,531.7765346,0.00042457,120]
[362143279,1748033552318,319.24,0.00042457,120]
[362143280,1748033570982,250.0,0.00015,2]
[362143281,1748033580856,226.92210813,0.00042457,120]
[362143282,1748033581226,420.0,0.00042457,120]
[362143283,1748033581465,190.40629501,0.00042457,120]
[362143284,1748033608818,420.0,0.00042457,120]
[362143285,1748033735947,256.57035264,0.00042457,120]
[362143287,1748033827223,300.0,0.00042457,120]
[362143288,1748033951142,152.25,0.00013699,2]
[362143290,1748034033055,420.0,0.00042446,120]
[362143291,1748034033300,420.0,0.00042446,120]
[362143292,1748034033649,518.92,0.00042446,120]
[362143294,1748034058859,420.0,0.00042446,120]
[362143296,1748034106183,199.42518839,0.00042446,120]
[362143297,1748034125057,193.58687272,0.00042446,120]
[362143305,1748034341143,-200.95117557,0.00017,2]
[362143306,1748034351175,420.0,0.00042447,60]
[362143307,1748034351412,420.0,0.00042447,60]
[362143308,1748034351647,189.81013352,0.00042447,60]
[362143309,1748034394091,-99.04882443,0.00017,2]
[362143310,1748034394114,-122.77006448,0.00017,2]
[362143311,1748034546078,-211.04204136,0.00017,2]
[362143312,1748034546103,-200.0,0.00017125,2]
[362143313,1748034546129,-200.0,0.0001725,2]
[362143314,1748034546156,-200.0,0.000187,2]
[362143315,1748034546182,-200.0,0.000187,2]
[362143316,1748034546208,-200.0,0.000187,2]
[362143317,1748034546233,-176.24702982,0.000189,2]
[362143318,1748034546257,-350.0,0.00019,2]
[362143319,1748034546282,-152.25,0.00020548,2]
[362143320,1748034546306,-152.98653759,0.00020979,2]
[362143321,1748034546331,-400.0,0.00021,2]
[362143322,1748034619928,164.36,0.00026008,120]
[362143323,1748034629064,193.68,0.00016712,2]
[362143329,1748034632151,-450.0,0.00023,2]
[362143330,1748034632161,-200.0,0.00023016,2]
[362143331,1748034632171,-224.42,0.00023032,2]
[362143332,1748034632180,-1185.22,0.00023896,2]
[362143333,1748034632189,-176.24702982,0.00024308,2]
[362143334,1748034632198,-300.0,0.00024408,2]
[362143335,1748034632208,-300.0,0.00024409,2]
[362143336,1748034632217,-300.0,0.00024409,2]
[362143337,1748034632227,-1200.0,0.00024409,2]
[362143338,1748034632236,-7751.7113,0.0002441,2]
[362143339,1748034632246,-1000.0,0.0002441,2]
[362143340,1748034632255,-4052.0,0.00024744,2]
[362143341,1748034632265,-4482.40167018,0.00024744,2]
[362143342,1748034632315,-2355.59832982,0.00024744,2]
[362143343,1748034632324,-237.00597018,0.00025,2]
[362143344,1748034632424,-262.99402982,0.00025,2]
[362143345,1748034632434,-500.0,0.000251,2]
[362143346,1748034632443,-165.54,0.00025192,2]
[362143347,1748034632452,-103.32597018,0.00025291,2]
[362143522,1748034638160,-154.0,0.00024744,2]
[362143523,1748034638170,-525.46402982,0.00025291,2]
[362143524,1748034638180,-200.0,0.000253,2]
[362143525,1748034638190,-150.0,0.00025329,2]
[362143526,1748034638203,-150.0,0.0002533,2]
[362143527,1748034638213,-150.0,0.0002533,2]
[362143528,1748034638222,-150.0,0.0002533,2]
[362143529,1748034638232,-936.0,0.0002533,2]
[362143530,1748034638241,-1310.0,0.0002533,2]
[362143531,1748034638251,-516.587,0.0002533,2]
[362143532,1748034638261,-799.0,0.0002533,2]
[362143533,1748034638271,-968.181,0.0002533,2]
[362143534,1748034638280,-1461.0,0.0002533,2]
[362143535,1748034638290,-921.0,0.0002533,2]
[362143536,1748034638299,-554.0,0.0002533,2]
[362143537,1748034638309,-586.0,0.0002533,2]
[362143538,1748034638319,-500.0,0.00025467,2]
[362143539,1748034638329,-211.0,0.00025659,2]
[362143540,1748034638339,-211.0,0.00025659,2]
[362143541,1748034638351,-2436.34,0.00025702,2]
[362143542,1748034638361,-250.0,0.00025709,2]
[362143543,1748034638370,-192.56,0.00025716,2]
[362143544,1748034638381,-1000.0,0.00025735,2]
[362143545,1748034638391,-150.0,0.00025857,7]
[362143546,1748034638400,-285.64443937,0.000259,14]
[362143547,1748034638409,-233.63,0.00025935,2]
[362143548,1748034638419,-250.0,0.00026014,2]
[362143549,1748034638428,-200.0,0.00026074,2]
[362143550,1748034638438,-1185.22,0.00026159,2]
[362143551,1748034638447,-500.0,0.00026164,7]
[362143552,1748034638457,-23900.0,0.00026201,2]
[362143553,1748034638468,-32146.24080115,0.00026401,2]
[362143554,1748034638487,-492.72314469,0.00026401,2]
[362143555,1748034638499,-2521.03605416,0.00026401,2]
[362143556,1748034638509,-285.64443915,0.00026452,15]
[362143557,1748034638518,-224.42,0.00026456,2]
[362143558,1748034638528,-420.0,0.0002646,2]
[362143559,1748034638538,-1536.78686389,0.0002658,2]
[362143560,1748034638550,-143.21313611,0.0002658,2]
[362143561,1748034638560,-166.57,0.00026713,2]
[362143562,1748034638569,-150.0,0.00026713,2]
[362143563,1748034638579,-150.0,0.00026713,2]
[362143564,1748034638588,-150.0,0.0002674,2]
[362143565,1748034638598,-200.0,0.00026768,2]
[362143566,1748034638607,-150.0,0.00026885,2]
[362143567,1748034638616,-150.0,0.00026885,2]
[362143568,1748034638626,-150.0,0.00026885,2]
[362143569,1748034638638,-168.91,0.00026885,2]
[362143570,1748034638649,-1368.0314,0.00026998,2]
[362143571,1748034638658,-550.0,0.00027,2]
[362143572,1748034638669,-285.64443915,0.00027003,16]
[362143573,1748034638679,-924.131,0.00027008,15]
[362143574,1748034638688,-170.17,0.00027123,2]
[362143575,1748034638698,-170.17,0.00027123,2]
[362143576,1748034638707,-229.10118561,0.00027124,2]
[362143577,1748034638717,-416.682618,0.00027354,4]
[362143578,1748034638727,-165.69022951,0.0002737,2]
[362143579,1748034638737,-150.0,0.00027378,2]
[362143580,1748034638747,-176.295536,0.00027397,4]
[362143581,1748034638756,-3566.94,0.00027397,2]
[362143582,1748034638767,-152.25,0.00027397,2]
[362143583,1748034638779,-150.01,0.00027397,2]
[362143584,1748034638788,-200.0,0.00027552,2]
[362143585,1748034638798,-285.64443915,0.00027555,17]
[362143586,1748034638807,-176.0,0.00027591,120]
[362143587,1748034638823,-836.79970007,0.00027593,2]
[362143588,1748034638835,-153.14,0.000277,2]
[362143589,1748034638844,-4052.0,0.00027744,2]
[362143590,1748034638855,-6838.0,0.00027744,2]
[362143591,1748034638864,-836.79970008,0.00027763,2]
[362143592,1748034638874,-500.0,0.00027808,7]
[362143593,1748034638884,-726.1841,0.0002782,2]
[362143594,1748034638895,-500.0,0.0002782,2]
[362143595,1748034638904,-9923.47696208,0.0002792,2]
[362143596,1748034638915,-332.5077,0.0002792,2]
[362143597,1748034638925,-150.0,0.00027939,2]
[362143598,1748034638935,-162.87,0.00027945,2]
[362143599,1748034638945,-170.17,0.00027945,2]
[362143600,1748034638955,-170.17,0.00027945,2]
[362143601,1748034638964,-170.17,0.00027945,2]
[362143602,1748034638973,-162.87,0.00027945,2]
[362143603,1748034638983,-170.17,0.00027945,2]
[362143604,1748034638994,-849.5,0.00027945,2]
[362143605,1748034639005,-162.66,0.00027945,2]
[362143606,1748034639014,-150.0,0.00027954,2]
[362143607,1748034639023,-1000.0,0.00027971,2]
[362143608,1748034639032,-3115.54770145,0.00027994,2]
[362143609,1748034639042,-800.0,0.00027999,10]
[362143610,1748034639052,-800.0,0.00027999,10]
[362143611,1748034639062,-800.0,0.00027999,10]
[362143612,1748034639071,-800.0,0.00027999,10]
[362143613,1748034639081,-800.0,0.00027999,10]
[362143614,1748034639091,-800.0,0.00027999,10]
[362143615,1748034639101,-800.0,0.00027999,10]
[362143616,1748034639111,-800.0,0.00027999,10]
[362143617,1748034639120,-800.0,0.00027999,10]
[362143618,1748034639131,-800.0,0.00027999,10]
[362143619,1748034639140,-150.0,0.00028003,2]
[362143620,1748034639149,-1000.0,0.00028044,2]
[362143621,1748034639159,-270.9274,0.00028084,2]
[362143622,1748034639169,-226.988,0.00028084,2]
[362143623,1748034639179,-317.9002,0.00028084,2]
[362143624,1748034639188,-150.0,0.00028085,2]
[362143625,1748034639198,-1000.0,0.00028094,2]
[362143626,1748034639210,-9946.17704139,0.00028094,2]
[362143627,1748034639220,-246.92438711,0.000281,2]
[362143628,1748034639230,-239.72977596,0.000281,2]
[362143629,1748034639240,-285.64443915,0.00028107,18]
[362143630,1748034639251,-150.0,0.00028146,2]
[362143631,1748034639262,-150.0,0.00028169,2]
[362143632,1748034639271,-188.81751178,0.00028189,2]
[362143633,1748034639281,-244.4050549,0.00028189,2]
[362143634,1748034639290,-180.66097728,0.00028189,2]
[362143635,1748034639300,-43048.7079344,0.0002819,3]
[362143636,1748034639309,-576.2674308,0.00028194,2]
[362143637,1748034639323,-409.05496297,0.00028194,2]
[362143638,1748034640258,-154.0,0.00027744,2]
[362143639,1748034640268,-1661.58122553,0.00028194,2]
[362143640,1748034640277,-3012.4851197,0.00028194,2]
[362143641,1748034640287,-15358.99289228,0.00028194,2]
[362143642,1748034640314,-289.15000193,0.00028194,2]
[362143643,1748034640478,-7909.37370824,0.00028194,2]
[362143644,1748034640489,-458.16410378,0.00028194,2]
[362143645,1748034641980,-30113.04837844,0.00028194,2]
[362143646,1748034642036,-1235.5582732,0.00028194,2]
[362143647,1748034642191,-574.51572812,0.00028194,2]
[362143648,1748034642203,-414.54,0.00028194,2]
[362143651,1748034643275,-1223.27479331,0.00028194,2]
[362143652,1748034643286,-4918.26261361,0.00028194,2]
[362143653,1748034643559,-293.38144589,0.00028194,2]
[362143654,1748034643569,-864.59242203,0.00028194,2]
[362143655,1748034643581,-1438.79751997,0.00028194,2]
[362143656,1748034643590,-73208.1079384,0.00028194,2]
[362143657,1748034643600,-37476.45259022,0.000282,2]
[362143658,1748034643616,-464.504,0.000282,2]
[362143659,1748034643627,-3002.17323782,0.000282,2]
[362143660,1748034643650,-5221.2663058,0.000282,2]
[362143663,1748034646146,-863.30221126,0.000282,2]
[362143664,1748034646311,-42522.59730133,0.000282,2]
[362143665,1748034646550,-2538.18000001,0.000282,2]
[362143666,1748034646562,-837.83203865,0.000282,2]
[362143725,1748034674147,420.0,0.00042447,120]
[362143726,1748034682067,420.0,0.00042447,120]
[362143727,1748034725490,245.5053306,0.00042447,120]
[362143728,1748034725552,208.37073772,0.00042447,120]
[362143729,1748034729082,151.0,0.00042447,120]
[362143730,1748034739382,420.0,0.00042447,120]
[362143731,1748034741646,420.0,0.00042447,120]
[362143732,1748034763637,420.0,0.00042447,120]
[362143733,1748034771094,420.0,0.00042447,120]
[362143734,1748034771344,420.0,0.00042447,120]
[362143735,1748034771592,420.0,0.00042447,120]
[362143736,1748034771841,420.0,0.00042447,120]
[362143737,1748034772107,420.0,0.00042447,120]
[362143738,1748034772365,420.0,0.00042447,120]
[362143739,1748034772619,420.0,0.00042447,120]
[362143740,1748034772886,420.0,0.00042447,120]
[362143741,1748034772930,420.0,0.00042447,120]
[362143742,1748034773125,420.0,0.00042447,120]
[362143743,1748034773167,420.0,0.00042447,120]
[362143744,1748034773373,420.0,0.00042447,120]
[362143745,1748034773417,494.15,0.00042447,120]
[362143746,1748034773624,420.0,0.00042447,120]
[362143747,1748034773854,420.0,0.00042447,120]
[362143748,1748034774130,420.0,0.00042447,120]
[362143749,1748034774398,420.0,0.00042447,120]
[362143750,1748034775092,420.0,0.00042447,120]
[362143751,1748034775347,420.0,0.00042447,120]
[362143752,1748034775408,420.0,0.00042447,120]
[362143753,1748034775627,420.0,0.00042447,120]
[362143754,1748034775689,420.0,0.00042447,120]
[362143755,1748034775987,420.0,0.00042447,120]
[362143756,1748034776235,420.0,0.00042447,120]
[362143757,1748034776759,400.09,0.00042447,120]
[362143758,1748034776959,420.0,0.00042447,120]
[362143759,1748034777014,420.0,0.00042447,120]
[362143760,1748034777207,420.0,0.00042447,120]
[362143761,1748034777446,420.0,0.00042447,120]
[362143762,1748034777707,420.0,0.00042447,120]
[362143763,1748034777958,420.0,0.00042447,120]
[362143764,1748034778235,420.0,0.00042447,120]
[362143765,1748034778472,498.69,0.00042447,120]
[362143766,1748034780443,514.34,0.00042447,120]
[362143767,1748034789679,429.15,0.00042447,120]
[362143768,1748034793118,544.79867801,0.00042447,120]
[362143769,1748034794546,491.78,0.00042447,120]
[362143770,1748034799613,420.0,0.00042447,120]
[362143771,1748034801319,420.0,0.00042447,120]
[362143772,1748034801615,963.61,0.00042447,120]
[362143773,1748034801869,963.61,0.00042447,120]
[362143774,1748034802476,963.61,0.00042447,120]
[362143775,1748034802749,963.61,0.00042447,120]
[362143776,1748034803214,963.61,0.00042447,120]
[362143777,1748034803261,963.61,0.00042447,120]
[362143778,1748034803458,963.61,0.00042447,120]
[362143779,1748034803720,963.61,0.00042447,120]
[362143780,1748034803929,420.0,0.00042447,120]
[362143781,1748034803988,963.61,0.00042447,120]
[362143782,1748034804573,963.61,0.00042447,120]